[Event "Titled Tuesday Blitz February 01 A 2022"]
[White "Atakhan, Abtin"]
[Black "Rustemov, Alexander"]
[WhiteFideId "22502203"]
[BlackFideId "4119002"]
[WhiteElo "2119"]
[BlackElo "2790"]
[Result "0-1"]
[Round "11"]
[TimeControl "180+1"]
[Date "2022.02.01"]
[WhiteClock "0:00:01"]
[BlackClock "0:00:17"]

1. d4 {[%clk 0:03:00]}  d5 {[%clk 0:02:57]} 2. Nf3 {[%clk 0:03:00]}  Nf6 {[%clk 0:02:57]} 3. g3 {[%clk 0:03:00]}  Bf5 {[%clk 0:02:56]} 4. Bg2 {[%clk 0:03:00]}  e6 {[%clk 0:02:55]} 5. c4 {[%clk 0:03:00]}  c6 {[%clk 0:02:54]} 6. Nc3 {[%clk 0:03:00]}  Nbd7 {[%clk 0:02:50]} 7. Qb3 {[%clk 0:02:59]}  Qb6 {[%clk 0:02:49]} 8. c5 {[%clk 0:02:59]}  Qxb3 {[%clk 0:02:47]} 9. axb3 {[%clk 0:03:00]}  a6 {[%clk 0:02:47]} 10. b4 {[%clk 0:02:47]}  Rc8 {[%clk 0:02:45]} 11. h3 {[%clk 0:02:46]}  h6 {[%clk 0:02:45]} 12. g4 {[%clk 0:02:43]}  Bh7 {[%clk 0:02:34]} 13. Bf4 {[%clk 0:02:43]}  Be7 {[%clk 0:02:34]} 14. Nd2 {[%clk 0:02:43]}  Bd8 {[%clk 0:02:27]} 15. Nb3 {[%clk 0:02:38]}  Bc7 {[%clk 0:02:28]} 16. Bxc7 {[%clk 0:02:32]}  Rxc7 {[%clk 0:02:28]} 17. e3 {[%clk 0:02:26]}  e5 {[%clk 0:02:26]} 18. f4 {[%clk 0:02:18]}  exf4 {[%clk 0:02:21]} 19. exf4 {[%clk 0:02:18]}  O-O {[%clk 0:02:17]} 20. Kf2 {[%clk 0:02:08]}  Ne4+ {[%clk 0:02:16]} 21. Bxe4 {[%clk 0:01:50]}  Bxe4 {[%clk 0:02:15]} 22. Nxe4 {[%clk 0:01:38]}  dxe4 {[%clk 0:02:15]} 23. g5 {[%clk 0:00:58]}  hxg5 {[%clk 0:02:10]} 24. fxg5 {[%clk 0:00:59]}  f5 {[%clk 0:02:10]} 25. Nd2 {[%clk 0:00:40]}  Re8 {[%clk 0:01:53]} 26. Ke3 {[%clk 0:00:36]}  Nf8 {[%clk 0:01:52]} 27. Raf1 {[%clk 0:00:34]}  g6 {[%clk 0:01:50]} 28. Nc4 {[%clk 0:00:32]}  Ne6 {[%clk 0:01:47]} 29. Nd6 {[%clk 0:00:31]}  Rf8 {[%clk 0:01:43]} 30. h4 {[%clk 0:00:25]}  Rh7 {[%clk 0:01:36]} 31. h5 {[%clk 0:00:19]}  Nc7 {[%clk 0:01:36]} 32. hxg6 {[%clk 0:00:16]}  Nd5+ {[%clk 0:01:37]} 33. Ke2 {[%clk 0:00:15]}  Rxh1 {[%clk 0:01:30]} 34. Rxh1 {[%clk 0:00:16]}  Kg7 {[%clk 0:01:30]} 35. Rh6 {[%clk 0:00:14]}  Nf4+ {[%clk 0:01:25]} 36. Ke3 {[%clk 0:00:13]}  Nxg6 {[%clk 0:01:26]} 37. Rh1 {[%clk 0:00:10]}  Ne7 {[%clk 0:01:20]} 38. Kf4 {[%clk 0:00:11]}  Nd5+ {[%clk 0:01:18]} 39. Ke5 {[%clk 0:00:11]}  e3 {[%clk 0:01:19]} 40. Nxf5+ {[%clk 0:00:11]}  Kg6 {[%clk 0:01:18]} 41. Nd6 {[%clk 0:00:07]}  Kxg5 {[%clk 0:01:13]} 42. Rg1+ {[%clk 0:00:03]}  Kh4 {[%clk 0:01:13]} 43. Nf5+ {[%clk 0:00:03]}  Kh3 {[%clk 0:01:12]} 44. Ke4 {[%clk 0:00:02]}  Rxf5 {[%clk 0:00:57]} 45. Kxf5 {[%clk 0:00:02]}  Kh2 {[%clk 0:00:56]} 46. Re1 {[%clk 0:00:01]}  Kg2 {[%clk 0:00:56]} 47. Ke4 {[%clk 0:00:02]}  Kf2 {[%clk 0:00:56]} 48. Rh1 {[%clk 0:00:01]}  e2 {[%clk 0:00:55]} 49. Rh2+ {[%clk 0:00:01]}  Kf1 {[%clk 0:00:55]} 50. Kf3 {[%clk 0:00:01]}  e1=N+ {[%clk 0:00:48]} 51. Ke4 {[%clk 0:00:02]}  Nxb4 {[%clk 0:00:45]} 52. Kf5 {[%clk 0:00:01]}  Ned3 {[%clk 0:00:42]} 53. Rh7 {[%clk 0:00:01]}  Nxb2 {[%clk 0:00:39]} 54. Rxb7 {[%clk 0:00:02]}  N2d3 {[%clk 0:00:39]} 55. Ke6 {[%clk 0:00:02]}  Ke2 {[%clk 0:00:38]} 56. Kd6 {[%clk 0:00:02]}  Ke3 {[%clk 0:00:38]} 57. Ra7 {[%clk 0:00:01]}  Kxd4 {[%clk 0:00:38]} 58. Rxa6 {[%clk 0:00:01]}  Nxa6 {[%clk 0:00:31]} 59. Kxc6 {[%clk 0:00:01]}  Ndb4+ {[%clk 0:00:17]} 0-1


[Site "https://www.chess.com"]

[Event "Titled Tuesday Blitz February 01 A 2022"]
[White "Barrientos, Sergio E"]
[Black "Ambartsumova, Karina"]
[WhiteFideId "4401824"]
[BlackFideId "4166299"]
[WhiteElo "2441"]
[BlackElo "2262"]
[Result "0-1"]
[Round "11"]
[TimeControl "180+1"]
[Date "2022.02.01"]
[WhiteClock "0:00:52"]
[BlackClock "0:00:39"]

1. d4 {[%clk 0:03:00]}  Nf6 {[%clk 0:02:58]} 2. c4 {[%clk 0:03:00]}  e6 {[%clk 0:02:58]} 3. Nf3 {[%clk 0:03:00]}  d5 {[%clk 0:02:58]} 4. Nc3 {[%clk 0:02:59]}  Bb4 {[%clk 0:02:57]} 5. cxd5 {[%clk 0:02:56]}  exd5 {[%clk 0:02:57]} 6. Bg5 {[%clk 0:02:56]}  h6 {[%clk 0:02:57]} 7. Bh4 {[%clk 0:02:56]}  g5 {[%clk 0:02:54]} 8. Bg3 {[%clk 0:02:56]}  Ne4 {[%clk 0:02:54]} 9. Rc1 {[%clk 0:02:56]}  Nc6 {[%clk 0:02:53]} 10. e3 {[%clk 0:02:54]}  h5 {[%clk 0:02:49]} 11. h4 {[%clk 0:02:37]}  Nxg3 {[%clk 0:02:42]} 12. fxg3 {[%clk 0:02:38]}  g4 {[%clk 0:02:43]} 13. Nd2 {[%clk 0:02:38]}  Bd6 {[%clk 0:02:28]} 14. Ne2 {[%clk 0:02:30]}  Qe7 {[%clk 0:02:20]} 15. Kf2 {[%clk 0:02:28]}  Bf5 {[%clk 0:02:13]} 16. Nf4 {[%clk 0:02:28]}  O-O-O {[%clk 0:02:07]} 17. Rxc6 {[%clk 0:02:20]}  bxc6 {[%clk 0:02:07]} 18. Qa4 {[%clk 0:02:20]}  Bxf4 {[%clk 0:01:43]} 19. exf4 {[%clk 0:01:58]}  Rhe8 {[%clk 0:01:38]} 20. Ba6+ {[%clk 0:01:40]}  Kd7 {[%clk 0:01:38]} 21. Qa3 {[%clk 0:01:33]}  Qxa3 {[%clk 0:01:27]} 22. bxa3 {[%clk 0:01:34]}  Bc2 {[%clk 0:00:51]} 23. Rc1 {[%clk 0:01:31]}  Ba4 {[%clk 0:00:51]} 24. Nb3 {[%clk 0:01:04]}  Bxb3 {[%clk 0:00:51]} 25. axb3 {[%clk 0:01:05]}  Re4 {[%clk 0:00:50]} 26. Rd1 {[%clk 0:01:04]}  Rde8 {[%clk 0:00:49]} 27. Bd3 {[%clk 0:01:03]}  Re3 {[%clk 0:00:47]} 28. b4 {[%clk 0:01:03]}  Kd6 {[%clk 0:00:46]} 29. Rd2 {[%clk 0:01:02]}  Re1 {[%clk 0:00:45]} 30. a4 {[%clk 0:00:56]}  Ra1 {[%clk 0:00:43]} 31. a5 {[%clk 0:00:53]}  Rb8 {[%clk 0:00:39]} 32. Rb2 {[%clk 0:00:52]}  Ra4 {[%clk 0:00:39]} 33. b5 {[%clk 0:00:52]}  cxb5 {[%clk 0:00:39]} 0-1


[Site "https://www.chess.com"]

[Event "Titled Tuesday Blitz February 01 A 2022"]
[White "Caruana, Fabiano"]
[Black "Narayanan.S.L"]
[WhiteFideId "2020009"]
[BlackFideId "5058422"]
[WhiteElo "2744"]
[BlackElo "2494"]
[Result "1-0"]
[Round "11"]
[TimeControl "180+1"]
[Date "2022.02.01"]
[WhiteClock "0:01:14"]
[BlackClock "0:00:30"]

1. e4 {[%clk 0:03:00]}  c5 {[%clk 0:02:59]} 2. Nf3 {[%clk 0:03:01]}  d6 {[%clk 0:02:59]} 3. Bb5+ {[%clk 0:03:01]}  Nd7 {[%clk 0:02:59]} 4. O-O {[%clk 0:03:00]}  a6 {[%clk 0:02:59]} 5. Bd3 {[%clk 0:02:59]}  Ngf6 {[%clk 0:02:47]} 6. Re1 {[%clk 0:02:58]}  b6 {[%clk 0:02:45]} 7. c3 {[%clk 0:02:58]}  Bb7 {[%clk 0:02:46]} 8. Bc2 {[%clk 0:02:58]}  e5 {[%clk 0:02:44]} 9. d4 {[%clk 0:02:59]}  Be7 {[%clk 0:02:45]} 10. d5 {[%clk 0:02:59]}  O-O {[%clk 0:02:44]} 11. c4 {[%clk 0:02:59]}  g6 {[%clk 0:02:44]} 12. Nc3 {[%clk 0:03:00]}  Nh5 {[%clk 0:02:43]} 13. Rb1 {[%clk 0:02:59]}  Ng7 {[%clk 0:02:40]} 14. b4 {[%clk 0:02:51]}  cxb4 {[%clk 0:02:20]} 15. Rxb4 {[%clk 0:02:52]}  Qc7 {[%clk 0:02:20]} 16. Be3 {[%clk 0:02:48]}  Rab8 {[%clk 0:02:21]} 17. Qe2 {[%clk 0:02:39]}  f5 {[%clk 0:01:56]} 18. Reb1 {[%clk 0:02:38]}  b5 {[%clk 0:01:56]} 19. a4 {[%clk 0:02:31]}  f4 {[%clk 0:01:50]} 20. Bd2 {[%clk 0:02:31]}  bxc4 {[%clk 0:01:42]} 21. Qxc4 {[%clk 0:02:23]}  Qxc4 {[%clk 0:01:33]} 22. Rxc4 {[%clk 0:02:24]}  Rfc8 {[%clk 0:01:32]} 23. Rxb7 {[%clk 0:01:52]}  Rxc4 {[%clk 0:01:26]} 24. Rxd7 {[%clk 0:01:52]}  Bd8 {[%clk 0:01:26]} 25. Bd3 {[%clk 0:01:45]}  Rc5 {[%clk 0:01:25]} 26. Rxd6 {[%clk 0:01:29]}  Ba5 {[%clk 0:01:26]} 27. Rc6 {[%clk 0:01:29]}  Rxc6 {[%clk 0:01:08]} 28. dxc6 {[%clk 0:01:30]}  Kf8 {[%clk 0:00:45]} 29. Nd5 {[%clk 0:01:20]}  Bxd2 {[%clk 0:00:43]} 30. c7 {[%clk 0:01:17]}  Re8 {[%clk 0:00:30]} 31. Bxa6 {[%clk 0:01:14]} 1-0


[Site "https://www.chess.com"]

[Event "Titled Tuesday Blitz February 01 A 2022"]
[White "Daneshvar, Bardiya"]
[Black "Corrales Jimenez, Fidel"]
[WhiteFideId "12576468"]
[BlackFideId "3506690"]
[WhiteElo "2295"]
[BlackElo "2541"]
[Result "1-0"]
[Round "11"]
[TimeControl "180+1"]
[Date "2022.02.01"]
[WhiteClock "0:00:12"]
[BlackClock "0:00:15"]

1. d4 {[%clk 0:03:00]}  Nf6 {[%clk 0:02:59]} 2. c4 {[%clk 0:03:01]}  g6 {[%clk 0:02:59]} 3. Nc3 {[%clk 0:03:01]}  d5 {[%clk 0:03:00]} 4. Bf4 {[%clk 0:03:00]}  Bg7 {[%clk 0:03:00]} 5. e3 {[%clk 0:03:00]}  O-O {[%clk 0:02:57]} 6. cxd5 {[%clk 0:03:01]}  Nxd5 {[%clk 0:02:57]} 7. Nxd5 {[%clk 0:03:01]}  Qxd5 {[%clk 0:02:58]} 8. Bxc7 {[%clk 0:03:02]}  Nc6 {[%clk 0:02:58]} 9. Ne2 {[%clk 0:03:02]}  Bg4 {[%clk 0:02:57]} 10. f3 {[%clk 0:03:01]}  Rac8 {[%clk 0:02:55]} 11. Bf4 {[%clk 0:02:49]}  Bd7 {[%clk 0:02:08]} 12. e4 {[%clk 0:02:37]}  Qa5+ {[%clk 0:02:06]} 13. Bd2 {[%clk 0:02:36]}  Qb6 {[%clk 0:02:06]} 14. Bc3 {[%clk 0:02:33]}  Rfd8 {[%clk 0:02:02]} 15. d5 {[%clk 0:02:24]}  Ne5 {[%clk 0:02:02]} 16. Nd4 {[%clk 0:02:19]}  e6 {[%clk 0:02:00]} 17. Qb3 {[%clk 0:02:14]}  Qc5 {[%clk 0:01:50]} 18. Be2 {[%clk 0:01:36]}  exd5 {[%clk 0:01:45]} 19. Qxd5 {[%clk 0:01:31]}  Qe7 {[%clk 0:01:27]} 20. Qxb7 {[%clk 0:01:04]}  Qh4+ {[%clk 0:01:23]} 21. g3 {[%clk 0:01:02]}  Qh3 {[%clk 0:01:22]} 22. Bf1 {[%clk 0:00:55]}  Qh5 {[%clk 0:01:18]} 23. Be2 {[%clk 0:00:55]}  Bh3 {[%clk 0:01:16]} 24. Qxa7 {[%clk 0:00:41]}  Rxd4 {[%clk 0:01:05]} 25. Qxd4 {[%clk 0:00:33]}  Bg2 {[%clk 0:00:57]} 26. O-O-O {[%clk 0:00:20]}  Bxh1 {[%clk 0:00:23]} 27. Rxh1 {[%clk 0:00:21]}  Qh3 {[%clk 0:00:23]} 28. Kb1 {[%clk 0:00:13]}  Qg2 {[%clk 0:00:18]} 29. Qd1 {[%clk 0:00:12]}  Qf2 {[%clk 0:00:15]} 30. Qe1 {[%clk 0:00:11]}  Qb6 {[%clk 0:00:15]} 31. Qd2 {[%clk 0:00:09]}  h5 {[%clk 0:00:14]} 32. Rc1 {[%clk 0:00:09]}  Rd8 {[%clk 0:00:14]} 33. Qc2 {[%clk 0:00:09]}  Rb8 {[%clk 0:00:13]} 34. f4 {[%clk 0:00:08]}  Nc6 {[%clk 0:00:07]} 35. Bxg7 {[%clk 0:00:08]}  Kxg7 {[%clk 0:00:07]} 36. Qc3+ {[%clk 0:00:07]}  Kg8 {[%clk 0:00:08]} 37. Bc4 {[%clk 0:00:07]}  Na5 {[%clk 0:00:08]} 38. Bd5 {[%clk 0:00:06]}  Nb7 {[%clk 0:00:07]} 39. Qc6 {[%clk 0:00:03]}  Nd6 {[%clk 0:00:05]} 40. Qxb6 {[%clk 0:00:03]}  Rxb6 {[%clk 0:00:06]} 41. b3 {[%clk 0:00:04]}  Nb5 {[%clk 0:00:07]} 42. Kb2 {[%clk 0:00:05]}  Nd4 {[%clk 0:00:07]} 43. a4 {[%clk 0:00:05]}  Kf8 {[%clk 0:00:07]} 44. a5 {[%clk 0:00:05]}  Rb5 {[%clk 0:00:07]} 45. Ra1 {[%clk 0:00:05]}  Rc5 {[%clk 0:00:04]} 46. a6 {[%clk 0:00:06]}  Rc2+ {[%clk 0:00:05]} 47. Ka3 {[%clk 0:00:05]}  f5 {[%clk 0:00:04]} 48. a7 {[%clk 0:00:05]}  Nb5+ {[%clk 0:00:03]} 49. Kb4 {[%clk 0:00:05]}  Nxa7 {[%clk 0:00:04]} 50. Rxa7 {[%clk 0:00:06]}  Rxh2 {[%clk 0:00:04]} 51. exf5 {[%clk 0:00:06]}  gxf5 {[%clk 0:00:05]} 52. Rf7+ {[%clk 0:00:06]}  Ke8 {[%clk 0:00:05]} 53. Rxf5 {[%clk 0:00:07]}  h4 {[%clk 0:00:06]} 54. gxh4 {[%clk 0:00:07]}  Rxh4 {[%clk 0:00:07]} 55. Kc5 {[%clk 0:00:07]}  Ke7 {[%clk 0:00:08]} 56. Kd4 {[%clk 0:00:07]}  Kd7 {[%clk 0:00:08]} 57. Ke5 {[%clk 0:00:08]}  Kc7 {[%clk 0:00:08]} 58. Rf7+ {[%clk 0:00:08]}  Kb6 {[%clk 0:00:09]} 59. f5 {[%clk 0:00:09]}  Kc5 {[%clk 0:00:10]} 60. f6 {[%clk 0:00:10]}  Kb4 {[%clk 0:00:10]} 61. Rb7+ {[%clk 0:00:10]}  Kc3 {[%clk 0:00:11]} 62. f7 {[%clk 0:00:11]}  Rh7 {[%clk 0:00:11]} 63. Be6 {[%clk 0:00:12]}  Rh5+ {[%clk 0:00:12]} 64. Kd6 {[%clk 0:00:12]}  Rh8 {[%clk 0:00:13]} 65. Re7 {[%clk 0:00:12]}  Rb8 {[%clk 0:00:12]} 66. Re8 {[%clk 0:00:12]}  Rb6+ {[%clk 0:00:13]} 67. Ke7 {[%clk 0:00:12]}  Rb7+ {[%clk 0:00:13]} 68. Kf6 {[%clk 0:00:13]}  Rb4 {[%clk 0:00:14]} 69. f8=Q {[%clk 0:00:13]}  Rf4+ {[%clk 0:00:15]} 70. Bf5 {[%clk 0:00:12]} 1-0


[Site "https://www.chess.com"]

[Event "Titled Tuesday Blitz February 01 A 2022"]
[White "Goryachkina, Aleksandra"]
[Black "Demchenko, Anton"]
[WhiteFideId "4147103"]
[BlackFideId "4160258"]
[WhiteElo "2426"]
[BlackElo "2539"]
[Result "0-1"]
[Round "11"]
[TimeControl "180+1"]
[Date "2022.02.01"]
[WhiteClock "0:00:12"]
[BlackClock "0:01:42"]

1. e4 {[%clk 0:02:59]}  e5 {[%clk 0:02:59]} 2. Nf3 {[%clk 0:02:59]}  Nc6 {[%clk 0:03:00]} 3. d4 {[%clk 0:02:59]}  exd4 {[%clk 0:03:00]} 4. Nxd4 {[%clk 0:03:00]}  Bc5 {[%clk 0:03:01]} 5. Nb3 {[%clk 0:02:59]}  Bb6 {[%clk 0:03:01]} 6. Nc3 {[%clk 0:02:59]}  d6 {[%clk 0:03:01]} 7. a4 {[%clk 0:02:49]}  a6 {[%clk 0:02:56]} 8. Bd3 {[%clk 0:02:37]}  Be6 {[%clk 0:02:46]} 9. O-O {[%clk 0:02:29]}  Nf6 {[%clk 0:02:45]} 10. h3 {[%clk 0:02:05]}  h6 {[%clk 0:02:26]} 11. Bf4 {[%clk 0:01:39]}  g5 {[%clk 0:02:14]} 12. Be3 {[%clk 0:01:11]}  Bxe3 {[%clk 0:02:09]} 13. fxe3 {[%clk 0:01:11]}  g4 {[%clk 0:02:09]} 14. h4 {[%clk 0:01:07]}  Nh5 {[%clk 0:01:56]} 15. Nd4 {[%clk 0:00:42]}  Nxd4 {[%clk 0:01:46]} 16. exd4 {[%clk 0:00:42]}  Qxh4 {[%clk 0:01:47]} 17. d5 {[%clk 0:00:16]}  g3 {[%clk 0:01:44]} 18. Rf3 {[%clk 0:00:12]}  Bg4 {[%clk 0:01:42]} 0-1


[Site "https://www.chess.com"]

[Event "Titled Tuesday Blitz February 01 A 2022"]
[White "Hansen, Eric"]
[Black "Deac, Bogdan-Daniel"]
[WhiteFideId "2606771"]
[BlackFideId "1226380"]
[WhiteElo "2568"]
[BlackElo "2646"]
[Result "1-0"]
[Round "11"]
[TimeControl "180+1"]
[Date "2022.02.01"]
[WhiteClock "0:00:07"]
[BlackClock "0:00:04"]

1. e4 {[%clk 0:03:00]}  e5 {[%clk 0:02:59]} 2. Nf3 {[%clk 0:03:00]}  Nc6 {[%clk 0:03:00]} 3. Bb5 {[%clk 0:02:57]}  Nf6 {[%clk 0:02:57]} 4. d3 {[%clk 0:02:55]}  Bc5 {[%clk 0:02:57]} 5. c3 {[%clk 0:02:53]}  O-O {[%clk 0:02:57]} 6. O-O {[%clk 0:02:50]}  Re8 {[%clk 0:02:57]} 7. Re1 {[%clk 0:02:49]}  a6 {[%clk 0:02:45]} 8. Bxc6 {[%clk 0:02:45]}  dxc6 {[%clk 0:02:45]} 9. h3 {[%clk 0:02:45]}  Nd7 {[%clk 0:02:27]} 10. d4 {[%clk 0:02:41]}  exd4 {[%clk 0:02:04]} 11. cxd4 {[%clk 0:02:41]}  Bf8 {[%clk 0:02:03]} 12. Bg5 {[%clk 0:02:31]}  f6 {[%clk 0:02:00]} 13. Bf4 {[%clk 0:02:31]}  c5 {[%clk 0:01:53]} 14. Qc2 {[%clk 0:02:23]}  c6 {[%clk 0:01:41]} 15. Nc3 {[%clk 0:02:08]}  cxd4 {[%clk 0:01:41]} 16. Nxd4 {[%clk 0:02:09]}  Ne5 {[%clk 0:01:40]} 17. Rad1 {[%clk 0:02:09]}  Qe7 {[%clk 0:01:17]} 18. Na4 {[%clk 0:02:04]}  Rb8 {[%clk 0:00:17]} 19. Nb6 {[%clk 0:01:45]}  Be6 {[%clk 0:00:16]} 20. Bxe5 {[%clk 0:01:11]}  fxe5 {[%clk 0:00:16]} 21. Nxe6 {[%clk 0:01:05]}  Qxe6 {[%clk 0:00:17]} 22. Rd7 {[%clk 0:01:05]}  c5 {[%clk 0:00:09]} 23. Qb3 {[%clk 0:01:00]}  Qxb3 {[%clk 0:00:07]} 24. axb3 {[%clk 0:01:01]}  Re6 {[%clk 0:00:08]} 25. Nc4 {[%clk 0:00:59]}  b5 {[%clk 0:00:07]} 26. Ne3 {[%clk 0:00:57]}  Rd6 {[%clk 0:00:07]} 27. Rxd6 {[%clk 0:00:51]}  Bxd6 {[%clk 0:00:08]} 28. Rd1 {[%clk 0:00:51]}  Rb6 {[%clk 0:00:05]} 29. Nf5 {[%clk 0:00:47]}  Bf8 {[%clk 0:00:05]} 30. Rd8 {[%clk 0:00:40]}  Kf7 {[%clk 0:00:02]} 31. Rc8 {[%clk 0:00:37]}  c4 {[%clk 0:00:02]} 32. bxc4 {[%clk 0:00:27]}  bxc4 {[%clk 0:00:03]} 33. Rxc4 {[%clk 0:00:28]}  Rxb2 {[%clk 0:00:03]} 34. Rc7+ {[%clk 0:00:28]}  Kg8 {[%clk 0:00:03]} 35. Rc8 {[%clk 0:00:20]}  Kf7 {[%clk 0:00:03]} 36. Rc7+ {[%clk 0:00:20]}  Kg8 {[%clk 0:00:04]} 37. g3 {[%clk 0:00:19]}  a5 {[%clk 0:00:03]} 38. Ra7 {[%clk 0:00:18]}  Ra2 {[%clk 0:00:03]} 39. Ra8 {[%clk 0:00:16]}  Kf7 {[%clk 0:00:03]} 40. Ra7+ {[%clk 0:00:17]}  Kg8 {[%clk 0:00:03]} 41. Ra8 {[%clk 0:00:15]}  a4 {[%clk 0:00:03]} 42. Nd6 {[%clk 0:00:12]}  a3 {[%clk 0:00:02]} 43. Nc4 {[%clk 0:00:11]}  Re2 {[%clk 0:00:02]} 44. Nxa3 {[%clk 0:00:07]}  Ra2 {[%clk 0:00:01]} 45. Ra5 {[%clk 0:00:05]}  Rxa3 {[%clk 0:00:01]} 46. Rxe5 {[%clk 0:00:06]}  Ra2 {[%clk 0:00:01]} 47. Rf5 {[%clk 0:00:06]}  g6 {[%clk 0:00:02]} 48. Rf3 {[%clk 0:00:06]}  Bc5 {[%clk 0:00:02]} 49. Kf1 {[%clk 0:00:06]}  Bd4 {[%clk 0:00:03]} 50. h4 {[%clk 0:00:06]}  Kg7 {[%clk 0:00:03]} 51. Rf4 {[%clk 0:00:06]}  h6 {[%clk 0:00:04]} 52. Rf3 {[%clk 0:00:05]}  Be5 {[%clk 0:00:04]} 53. Rd3 {[%clk 0:00:05]}  Ra4 {[%clk 0:00:04]} 54. f4 {[%clk 0:00:05]}  Bd4 {[%clk 0:00:04]} 55. Ke2 {[%clk 0:00:05]}  Kf6 {[%clk 0:00:04]} 56. Kf3 {[%clk 0:00:05]}  Ke6 {[%clk 0:00:04]} 57. Rb3 {[%clk 0:00:06]}  Rc4 {[%clk 0:00:04]} 58. Kg4 {[%clk 0:00:05]}  Kf6 {[%clk 0:00:04]} 59. h5 {[%clk 0:00:05]}  Bc5 {[%clk 0:00:03]} 60. e5+ {[%clk 0:00:04]}  Kf7 {[%clk 0:00:02]} 61. Rb7+ {[%clk 0:00:03]}  Ke6 {[%clk 0:00:02]} 62. hxg6 {[%clk 0:00:02]}  Bf2 {[%clk 0:00:03]} 63. g7 {[%clk 0:00:02]}  Rc8 {[%clk 0:00:03]} 64. f5+ {[%clk 0:00:02]}  Kxe5 {[%clk 0:00:03]} 65. Rf7 {[%clk 0:00:03]}  Rg8 {[%clk 0:00:03]} 66. Kh5 {[%clk 0:00:03]}  Bxg3 {[%clk 0:00:02]} 67. Kg6 {[%clk 0:00:04]}  Bf4 {[%clk 0:00:02]} 68. f6 {[%clk 0:00:04]}  h5 {[%clk 0:00:02]} 69. Rf8 {[%clk 0:00:05]}  Rxg7+ {[%clk 0:00:03]} 70. fxg7 {[%clk 0:00:06]}  h4 {[%clk 0:00:03]} 71. g8=Q {[%clk 0:00:06]}  h3 {[%clk 0:00:04]} 72. Re8+ {[%clk 0:00:07]} 1-0


[Site "https://www.chess.com"]

[Event "Titled Tuesday Blitz February 01 A 2022"]
[White "Dronavalli, Harika"]
[Black "Shirov, Alexei"]
[WhiteFideId "5015197"]
[BlackFideId "2209390"]
[WhiteElo "2382"]
[BlackElo "2645"]
[Result "1/2-1/2"]
[Round "11"]
[TimeControl "180+1"]
[Date "2022.02.01"]
[WhiteClock "0:00:16"]
[BlackClock "0:00:21"]

1. d4 {[%clk 0:03:00]}  d5 {[%clk 0:02:59]} 2. c4 {[%clk 0:03:00]}  c6 {[%clk 0:02:59]} 3. Nc3 {[%clk 0:02:58]}  Nf6 {[%clk 0:02:59]} 4. e3 {[%clk 0:02:58]}  Nbd7 {[%clk 0:02:54]} 5. Nf3 {[%clk 0:02:57]}  e6 {[%clk 0:02:54]} 6. Qc2 {[%clk 0:02:56]}  Bd6 {[%clk 0:02:53]} 7. b3 {[%clk 0:02:55]}  O-O {[%clk 0:02:51]} 8. Be2 {[%clk 0:02:56]}  b6 {[%clk 0:02:49]} 9. Bb2 {[%clk 0:02:56]}  Bb7 {[%clk 0:02:48]} 10. O-O {[%clk 0:02:56]}  Qe7 {[%clk 0:02:46]} 11. Rfe1 {[%clk 0:02:56]}  Rad8 {[%clk 0:02:43]} 12. e4 {[%clk 0:02:55]}  Nxe4 {[%clk 0:02:39]} 13. Nxe4 {[%clk 0:02:56]}  dxe4 {[%clk 0:02:38]} 14. Qxe4 {[%clk 0:02:56]}  Nf6 {[%clk 0:02:36]} 15. Qh4 {[%clk 0:02:56]}  Ba3 {[%clk 0:02:21]} 16. Bc3 {[%clk 0:02:12]}  Bb4 {[%clk 0:02:20]} 17. Bxb4 {[%clk 0:02:11]}  Qxb4 {[%clk 0:02:19]} 18. Qg5 {[%clk 0:01:43]}  c5 {[%clk 0:02:10]} 19. dxc5 {[%clk 0:01:41]}  Ne4 {[%clk 0:02:04]} 20. Qe3 {[%clk 0:01:42]}  Nxc5 {[%clk 0:01:56]} 21. Bf1 {[%clk 0:01:33]}  a5 {[%clk 0:01:53]} 22. Reb1 {[%clk 0:01:26]}  Bxf3 {[%clk 0:01:49]} 23. Qxf3 {[%clk 0:01:26]}  Qa3 {[%clk 0:01:32]} 24. Qc6 {[%clk 0:01:21]}  Rb8 {[%clk 0:01:30]} 25. Qb5 {[%clk 0:01:03]}  g6 {[%clk 0:01:27]} 26. b4 {[%clk 0:00:58]}  axb4 {[%clk 0:01:25]} 27. Qxb4 {[%clk 0:00:59]}  Qa7 {[%clk 0:01:25]} 28. a4 {[%clk 0:00:57]}  Rfd8 {[%clk 0:01:22]} 29. h3 {[%clk 0:00:54]}  Qc7 {[%clk 0:01:21]} 30. Qe1 {[%clk 0:00:50]}  Ra8 {[%clk 0:01:18]} 31. Rb4 {[%clk 0:00:50]}  Ra6 {[%clk 0:01:17]} 32. Qb1 {[%clk 0:00:30]}  Rda8 {[%clk 0:01:16]} 33. Qc2 {[%clk 0:00:18]}  Qc6 {[%clk 0:01:12]} 34. Rab1 {[%clk 0:00:18]}  Nxa4 {[%clk 0:01:10]} 35. c5 {[%clk 0:00:18]}  Ra5 {[%clk 0:00:59]} 36. Bb5 {[%clk 0:00:18]}  Qxc5 {[%clk 0:00:53]} 37. Bxa4 {[%clk 0:00:18]}  Rxa4 {[%clk 0:00:51]} 38. Qxa4 {[%clk 0:00:18]}  Rxa4 {[%clk 0:00:49]} 39. Rxa4 {[%clk 0:00:19]}  Kg7 {[%clk 0:00:43]} 40. Rab4 {[%clk 0:00:20]}  h5 {[%clk 0:00:41]} 41. Rxb6 {[%clk 0:00:20]}  Qd4 {[%clk 0:00:40]} 42. R6b5 {[%clk 0:00:21]}  Qf4 {[%clk 0:00:39]} 43. R5b4 {[%clk 0:00:21]}  Qf6 {[%clk 0:00:39]} 44. R4b3 {[%clk 0:00:21]}  Qd4 {[%clk 0:00:39]} 45. Rf3 {[%clk 0:00:21]}  Qd5 {[%clk 0:00:38]} 46. Rc1 {[%clk 0:00:21]}  Qe5 {[%clk 0:00:37]} 47. Rd1 {[%clk 0:00:20]}  Qb5 {[%clk 0:00:35]} 48. Rfd3 {[%clk 0:00:21]}  g5 {[%clk 0:00:34]} 49. Rd4 {[%clk 0:00:21]}  Kg6 {[%clk 0:00:35]} 50. R4d2 {[%clk 0:00:21]}  Qb4 {[%clk 0:00:34]} 51. Rc2 {[%clk 0:00:21]}  Qe4 {[%clk 0:00:34]} 52. Rcd2 {[%clk 0:00:21]}  g4 {[%clk 0:00:34]} 53. Rd4 {[%clk 0:00:21]}  Qf5 {[%clk 0:00:34]} 54. hxg4 {[%clk 0:00:22]}  hxg4 {[%clk 0:00:34]} 55. Rb4 {[%clk 0:00:22]}  Qg5 {[%clk 0:00:33]} 56. Rbd4 {[%clk 0:00:22]}  g3 {[%clk 0:00:32]} 57. fxg3 {[%clk 0:00:22]}  Qxg3 {[%clk 0:00:32]} 58. R4d3 {[%clk 0:00:23]}  Qe5 {[%clk 0:00:32]} 59. Kf2 {[%clk 0:00:23]}  Qc5+ {[%clk 0:00:31]} 60. Kf1 {[%clk 0:00:22]}  f5 {[%clk 0:00:31]} 61. Rd6 {[%clk 0:00:21]}  Qc4+ {[%clk 0:00:30]} 62. Kf2 {[%clk 0:00:21]}  Kf6 {[%clk 0:00:30]} 63. R1d2 {[%clk 0:00:22]}  Qc5+ {[%clk 0:00:30]} 64. Kf1 {[%clk 0:00:22]}  Ke5 {[%clk 0:00:30]} 65. Rd8 {[%clk 0:00:22]}  Qc4+ {[%clk 0:00:29]} 66. Kf2 {[%clk 0:00:22]}  Qc5+ {[%clk 0:00:29]} 67. Kf1 {[%clk 0:00:22]}  Kf4 {[%clk 0:00:28]} 68. R2d4+ {[%clk 0:00:22]}  Kg5 {[%clk 0:00:27]} 69. Rd3 {[%clk 0:00:21]}  e5 {[%clk 0:00:27]} 70. R3d5 {[%clk 0:00:21]}  Qc4+ {[%clk 0:00:27]} 71. Kf2 {[%clk 0:00:21]}  Qc2+ {[%clk 0:00:26]} 72. Kf1 {[%clk 0:00:21]}  Qc1+ {[%clk 0:00:26]} 73. Kf2 {[%clk 0:00:21]}  Qf4+ {[%clk 0:00:26]} 74. Ke2 {[%clk 0:00:19]}  Qe4+ {[%clk 0:00:26]} 75. Kf2 {[%clk 0:00:20]}  Kf4 {[%clk 0:00:26]} 76. Rd3 {[%clk 0:00:19]}  Qc4 {[%clk 0:00:25]} 77. Rf3+ {[%clk 0:00:16]}  Kg5 {[%clk 0:00:25]} 78. Rg8+ {[%clk 0:00:16]}  Kf6 {[%clk 0:00:24]} 79. Rf8+ {[%clk 0:00:16]}  Ke7 {[%clk 0:00:23]} 80. R3xf5 {[%clk 0:00:17]}  Qd4+ {[%clk 0:00:22]} 81. Kf1 {[%clk 0:00:16]}  Qd3+ {[%clk 0:00:22]} 82. Kf2 {[%clk 0:00:17]}  Qd4+ {[%clk 0:00:22]} 83. Kg3 {[%clk 0:00:17]}  Qe3+ {[%clk 0:00:22]} 84. Rf3 {[%clk 0:00:17]}  Qg5+ {[%clk 0:00:21]} 85. Kh2 {[%clk 0:00:18]}  Qh6+ {[%clk 0:00:21]} 86. Kg1 {[%clk 0:00:17]}  Qxf8 {[%clk 0:00:21]} 87. Rxf8 {[%clk 0:00:15]}  Kxf8 {[%clk 0:00:21]} 88. Kf2 {[%clk 0:00:16]}  Kg7 {[%clk 0:00:21]} 1/2-1/2


[Site "https://www.chess.com"]